[Event "Titled Tuesday Blitz December 27 Late 2022"]
[White "Steinberg, Nitzan"]
[Black "Poltorak, Sebastian"]
[WhiteFideId "2801795"]
[BlackFideId "1199498"]
[WhiteElo "2546"]
[BlackElo "2354"]
[Result "1/2-1/2"]
[Round "06"]
[TimeControl "180+2"]
[Date "2022.12.27"]
[WhiteClock "0:00:05"]
[BlackClock "0:00:45"]

1. e4 {[%clk 0:02:56]}  c6 {[%clk 0:02:58]} 2. Nf3 {[%clk 0:02:55]}  d5 {[%clk 0:02:59]} 3. d3 {[%clk 0:02:56]}  Bg4 {[%clk 0:02:55]} 4. Nbd2 {[%clk 0:02:54]}  Nd7 {[%clk 0:02:53]} 5. h3 {[%clk 0:02:52]}  Bxf3 {[%clk 0:02:50]} 6. Nxf3 {[%clk 0:02:51]}  e5 {[%clk 0:02:50]} 7. g3 {[%clk 0:02:45]}  Bc5 {[%clk 0:02:49]} 8. Bg2 {[%clk 0:02:45]}  Ne7 {[%clk 0:02:49]} 9. O-O {[%clk 0:02:45]}  O-O {[%clk 0:02:50]} 10. c3 {[%clk 0:02:42]}  Qc7 {[%clk 0:02:48]} 11. exd5 {[%clk 0:02:42]}  Nxd5 {[%clk 0:02:45]} 12. d4 {[%clk 0:02:40]}  exd4 {[%clk 0:02:45]} 13. Nxd4 {[%clk 0:02:41]}  Rae8 {[%clk 0:02:40]} 14. h4 {[%clk 0:02:24]}  N7f6 {[%clk 0:02:34]} 15. Qd3 {[%clk 0:02:12]}  Rd8 {[%clk 0:02:27]} 16. Bd2 {[%clk 0:02:04]}  Bxd4 {[%clk 0:02:16]} 17. cxd4 {[%clk 0:02:04]}  Rfe8 {[%clk 0:02:09]} 18. Rfe1 {[%clk 0:02:04]}  Qd7 {[%clk 0:02:05]} 19. Re5 {[%clk 0:01:58]}  Nb6 {[%clk 0:01:48]} 20. Rxe8+ {[%clk 0:01:59]}  Nxe8 {[%clk 0:01:46]} 21. Re1 {[%clk 0:01:56]}  Nf6 {[%clk 0:01:45]} 22. Be3 {[%clk 0:01:45]}  Nbd5 {[%clk 0:01:37]} 23. Bd2 {[%clk 0:01:40]}  Nb6 {[%clk 0:01:36]} 24. Bc3 {[%clk 0:01:25]}  Nbd5 {[%clk 0:01:30]} 25. Ba5 {[%clk 0:01:25]}  Nb6 {[%clk 0:01:22]} 26. Rd1 {[%clk 0:01:24]}  Nfd5 {[%clk 0:01:10]} 27. Bd2 {[%clk 0:01:12]}  h6 {[%clk 0:01:08]} 28. Bf3 {[%clk 0:01:09]}  Nf6 {[%clk 0:01:08]} 29. Ba5 {[%clk 0:01:05]}  Nfd5 {[%clk 0:01:08]} 30. Kg2 {[%clk 0:01:05]}  Qd6 {[%clk 0:01:07]} 31. Re1 {[%clk 0:01:01]}  Nf6 {[%clk 0:01:06]} 32. Qb3 {[%clk 0:00:55]}  Nfd5 {[%clk 0:00:59]} 33. Re5 {[%clk 0:00:50]}  Qd7 {[%clk 0:00:51]} 34. Bxd5 {[%clk 0:00:46]}  cxd5 {[%clk 0:00:51]} 35. Bxb6 {[%clk 0:00:46]}  axb6 {[%clk 0:00:49]} 36. Qxb6 {[%clk 0:00:46]}  Rc8 {[%clk 0:00:49]} 37. Qa5 {[%clk 0:00:38]}  Rc2 {[%clk 0:00:42]} 38. Qxd5 {[%clk 0:00:19]}  Qxd5+ {[%clk 0:00:42]} 39. Rxd5 {[%clk 0:00:19]}  Rxb2 {[%clk 0:00:43]} 40. a4 {[%clk 0:00:19]}  Rb4 {[%clk 0:00:42]} 41. a5 {[%clk 0:00:20]}  Ra4 {[%clk 0:00:42]} 42. Kf3 {[%clk 0:00:18]}  Kf8 {[%clk 0:00:43]} 43. Rb5 {[%clk 0:00:10]}  Rxd4 {[%clk 0:00:40]} 44. Rxb7 {[%clk 0:00:10]}  Ra4 {[%clk 0:00:41]} 45. Ra7 {[%clk 0:00:10]}  g6 {[%clk 0:00:38]} 46. a6 {[%clk 0:00:09]}  Kg7 {[%clk 0:00:38]} 47. Ra8 {[%clk 0:00:08]}  Kf6 {[%clk 0:00:38]} 48. Ke3 {[%clk 0:00:08]}  Kf5 {[%clk 0:00:36]} 49. a7 {[%clk 0:00:05]}  Kf6 {[%clk 0:00:35]} 50. Kd3 {[%clk 0:00:06]}  h5 {[%clk 0:00:35]} 51. Kc3 {[%clk 0:00:06]}  Kg7 {[%clk 0:00:35]} 52. Kb3 {[%clk 0:00:06]}  Ra6 {[%clk 0:00:35]} 53. Kc4 {[%clk 0:00:07]}  Ra1 {[%clk 0:00:36]} 54. f3 {[%clk 0:00:05]}  Rc1+ {[%clk 0:00:35]} 55. Kd3 {[%clk 0:00:05]}  Ra1 {[%clk 0:00:36]} 56. g4 {[%clk 0:00:05]}  Ra3+ {[%clk 0:00:36]} 57. Ke4 {[%clk 0:00:05]}  Ra4+ {[%clk 0:00:36]} 58. Ke3 {[%clk 0:00:05]}  Ra3+ {[%clk 0:00:36]} 59. Kf4 {[%clk 0:00:06]}  Ra4+ {[%clk 0:00:36]} 60. Kg3 {[%clk 0:00:06]}  hxg4 {[%clk 0:00:35]} 61. fxg4 {[%clk 0:00:06]}  Kh7 {[%clk 0:00:36]} 62. h5 {[%clk 0:00:06]}  gxh5 {[%clk 0:00:35]} 63. gxh5 {[%clk 0:00:06]}  Kg7 {[%clk 0:00:35]} 64. Kf3 {[%clk 0:00:06]}  Kh7 {[%clk 0:00:35]} 65. Ke3 {[%clk 0:00:06]}  f5 {[%clk 0:00:36]} 66. Kf3 {[%clk 0:00:05]}  f4 {[%clk 0:00:34]} 67. h6 {[%clk 0:00:05]}  Ra1 {[%clk 0:00:34]} 68. Kxf4 {[%clk 0:00:05]}  Ra4+ {[%clk 0:00:35]} 69. Ke5 {[%clk 0:00:06]}  Ra5+ {[%clk 0:00:36]} 70. Kd4 {[%clk 0:00:06]}  Ra1 {[%clk 0:00:36]} 71. Kc5 {[%clk 0:00:05]}  Rc1+ {[%clk 0:00:36]} 72. Kb4 {[%clk 0:00:06]}  Rb1+ {[%clk 0:00:36]} 73. Kc3 {[%clk 0:00:06]}  Ra1 {[%clk 0:00:36]} 74. Kb2 {[%clk 0:00:06]}  Ra6 {[%clk 0:00:37]} 75. Kb3 {[%clk 0:00:06]}  Ra1 {[%clk 0:00:37]} 76. Kc4 {[%clk 0:00:05]}  Rc1+ {[%clk 0:00:37]} 77. Kd3 {[%clk 0:00:06]}  Rd1+ {[%clk 0:00:37]} 78. Ke4 {[%clk 0:00:06]}  Ra1 {[%clk 0:00:38]} 79. Kf5 {[%clk 0:00:07]}  Ra5+ {[%clk 0:00:38]} 80. Ke6 {[%clk 0:00:07]}  Ra6+ {[%clk 0:00:39]} 81. Kd7 {[%clk 0:00:08]}  Ra1 {[%clk 0:00:39]} 82. Kc6 {[%clk 0:00:04]}  Rc1+ {[%clk 0:00:39]} 83. Kb7 {[%clk 0:00:05]}  Rb1+ {[%clk 0:00:40]} 84. Kc8 {[%clk 0:00:06]}  Rc1+ {[%clk 0:00:40]} 85. Kd7 {[%clk 0:00:06]}  Rd1+ {[%clk 0:00:41]} 86. Ke6 {[%clk 0:00:07]}  Re1+ {[%clk 0:00:41]} 87. Kf5 {[%clk 0:00:08]}  Rf1+ {[%clk 0:00:42]} 88. Kg4 {[%clk 0:00:08]}  Rg1+ {[%clk 0:00:43]} 89. Kh3 {[%clk 0:00:09]}  Ra1 {[%clk 0:00:43]} 90. Kg3 {[%clk 0:00:06]}  Ra3+ {[%clk 0:00:44]} 91. Kf2 {[%clk 0:00:07]}  Ra2+ {[%clk 0:00:44]} 92. Ke3 {[%clk 0:00:07]}  Ra3+ {[%clk 0:00:45]} 93. Kd4 {[%clk 0:00:08]}  Ra1 {[%clk 0:00:45]} 94. Kc5 {[%clk 0:00:09]}  Rc1+ {[%clk 0:00:44]} 95. Kb4 {[%clk 0:00:10]}  Rb1+ {[%clk 0:00:45]} 96. Ka3 {[%clk 0:00:10]}  Ra1+ {[%clk 0:00:45]} 97. Kb3 {[%clk 0:00:10]}  Ra6 {[%clk 0:00:46]} 98. Kb4 {[%clk 0:00:04]}  Ra1 {[%clk 0:00:46]} 99. Kc3 {[%clk 0:00:05]}  Ra5 {[%clk 0:00:45]} 100. Kb4 {[%clk 0:00:05]}  Ra1 {[%clk 0:00:45]} 101. Kc3 {[%clk 0:00:05]} 1/2-1/2


[Site "https://www.chess.com"]

[Event "Titled Tuesday Blitz December 27 Late 2022"]
[White "Sukandar, Irine Kharisma"]
[Black "Bjelobrk, Igor"]
[WhiteFideId "7101937"]
[BlackFideId "4300726"]
[WhiteElo "2390"]
[BlackElo "2403"]
[Result "1-0"]
[Round "06"]
[TimeControl "180+2"]
[Date "2022.12.27"]
[WhiteClock "0:00:07"]
[BlackClock "0:00:05"]

1. e4 {[%clk 0:03:00]}  e5 {[%clk 0:02:50]} 2. Nf3 {[%clk 0:03:00]}  Nc6 {[%clk 0:02:45]} 3. d4 {[%clk 0:03:00]}  exd4 {[%clk 0:02:45]} 4. Nxd4 {[%clk 0:03:00]}  Nf6 {[%clk 0:02:45]} 5. Nc3 {[%clk 0:02:55]}  Bb4 {[%clk 0:02:40]} 6. Nxc6 {[%clk 0:02:55]}  bxc6 {[%clk 0:02:39]} 7. Bd3 {[%clk 0:02:55]}  O-O {[%clk 0:02:33]} 8. O-O {[%clk 0:02:55]}  Re8 {[%clk 0:02:33]} 9. Qf3 {[%clk 0:02:26]}  Rb8 {[%clk 0:02:31]} 10. Bd2 {[%clk 0:02:24]}  Bd6 {[%clk 0:02:27]} 11. b3 {[%clk 0:02:04]}  Be5 {[%clk 0:02:25]} 12. Rae1 {[%clk 0:02:00]}  d6 {[%clk 0:02:24]} 13. h3 {[%clk 0:02:00]}  Be6 {[%clk 0:02:19]} 14. Nd1 {[%clk 0:01:50]}  Nd7 {[%clk 0:02:17]} 15. Ne3 {[%clk 0:01:49]}  Nc5 {[%clk 0:02:14]} 16. Bc4 {[%clk 0:01:46]}  Qe7 {[%clk 0:01:59]} 17. Bxe6 {[%clk 0:01:37]}  Nxe6 {[%clk 0:01:59]} 18. Nf5 {[%clk 0:01:28]}  Qf6 {[%clk 0:01:54]} 19. Qg4 {[%clk 0:01:24]}  Qg6 {[%clk 0:01:32]} 20. Qe2 {[%clk 0:00:57]}  c5 {[%clk 0:01:01]} 21. Kh1 {[%clk 0:00:55]}  h6 {[%clk 0:00:42]} 22. Qa6 {[%clk 0:00:50]}  Qf6 {[%clk 0:00:22]} 23. f4 {[%clk 0:00:34]}  Bc3 {[%clk 0:00:20]} 24. Rd1 {[%clk 0:00:24]}  Bxd2 {[%clk 0:00:20]} 25. Rxd2 {[%clk 0:00:24]}  Qc3 {[%clk 0:00:21]} 26. Re2 {[%clk 0:00:22]}  h5 {[%clk 0:00:17]} 27. Rf3 {[%clk 0:00:20]}  Qf6 {[%clk 0:00:17]} 28. a4 {[%clk 0:00:16]}  g6 {[%clk 0:00:17]} 29. Ne3 {[%clk 0:00:16]}  Nxf4 {[%clk 0:00:17]} 30. Ref2 {[%clk 0:00:13]}  Rxe4 {[%clk 0:00:17]} 31. Nd5 {[%clk 0:00:12]}  Qe5 {[%clk 0:00:11]} 32. Nxf4 {[%clk 0:00:11]}  Re1+ {[%clk 0:00:10]} 33. Rf1 {[%clk 0:00:12]}  Rxf1+ {[%clk 0:00:10]} 34. Qxf1 {[%clk 0:00:11]}  h4 {[%clk 0:00:10]} 35. Nd3 {[%clk 0:00:11]}  Qg7 {[%clk 0:00:10]} 36. Rf4 {[%clk 0:00:12]}  g5 {[%clk 0:00:10]} 37. Rf5 {[%clk 0:00:12]}  Re8 {[%clk 0:00:10]} 38. Qf3 {[%clk 0:00:10]}  Qg6 {[%clk 0:00:10]} 39. Rf6 {[%clk 0:00:10]}  Qg7 {[%clk 0:00:09]} 40. Rf5 {[%clk 0:00:10]}  Qg6 {[%clk 0:00:10]} 41. Qg4 {[%clk 0:00:11]}  f6 {[%clk 0:00:10]} 42. Qf3 {[%clk 0:00:11]}  Kg7 {[%clk 0:00:09]} 43. Qd5 {[%clk 0:00:10]}  Re7 {[%clk 0:00:07]} 44. Rf1 {[%clk 0:00:10]}  Qh5 {[%clk 0:00:07]} 45. Qf5 {[%clk 0:00:10]}  Rf7 {[%clk 0:00:06]} 46. Qe4 {[%clk 0:00:09]}  Qg6 {[%clk 0:00:04]} 47. Qe6 {[%clk 0:00:09]}  f5 {[%clk 0:00:03]} 48. Qd5 {[%clk 0:00:08]}  Qf6 {[%clk 0:00:03]} 49. Qc4 {[%clk 0:00:07]}  Re7 {[%clk 0:00:03]} 50. Qd5 {[%clk 0:00:07]}  f4 {[%clk 0:00:04]} 51. Qf3 {[%clk 0:00:07]}  Kg6 {[%clk 0:00:04]} 52. Qg4 {[%clk 0:00:07]}  Qf5 {[%clk 0:00:04]} 53. Nxf4+ {[%clk 0:00:07]}  Kf6 {[%clk 0:00:05]} 54. Nh5+ {[%clk 0:00:07]}  Kg6 {[%clk 0:00:05]} 55. Qxf5+ {[%clk 0:00:07]}  Kxh5 {[%clk 0:00:05]} 56. Qg4+ {[%clk 0:00:07]} 1-0


[Site "https://www.chess.com"]

[Event "Titled Tuesday Blitz December 27 Late 2022"]
[White "TheKnightOfBosnia"]
[Black "Fernandez, Maria Florencia"]
[BlackFideId "116459"]
[WhiteElo "2434"]
[BlackElo "2129"]
[Result "1-0"]
[Round "06"]
[TimeControl "180+2"]
[Date "2022.12.27"]
[WhiteClock "0:00:22"]
[BlackClock "0:00:07"]

1. e4 {[%clk 0:03:00]}  c5 {[%clk 0:02:58]} 2. Nf3 {[%clk 0:03:00]}  d6 {[%clk 0:02:59]} 3. Bb5+ {[%clk 0:03:01]}  Nd7 {[%clk 0:02:57]} 4. d4 {[%clk 0:03:01]}  cxd4 {[%clk 0:02:57]} 5. Qxd4 {[%clk 0:03:02]}  a6 {[%clk 0:02:55]} 6. Bxd7+ {[%clk 0:03:02]}  Bxd7 {[%clk 0:02:54]} 7. Nc3 {[%clk 0:03:02]}  Nf6 {[%clk 0:02:54]} 8. Bg5 {[%clk 0:03:00]}  e6 {[%clk 0:02:42]} 9. Bxf6 {[%clk 0:02:52]}  Qxf6 {[%clk 0:02:37]} 10. Qxf6 {[%clk 0:02:52]}  gxf6 {[%clk 0:02:37]} 11. O-O {[%clk 0:02:51]}  Be7 {[%clk 0:02:30]} 12. Rad1 {[%clk 0:02:48]}  O-O {[%clk 0:02:29]} 13. Rd2 {[%clk 0:02:42]}  Bc6 {[%clk 0:02:22]} 14. Nd4 {[%clk 0:02:39]}  Rac8 {[%clk 0:02:10]} 15. Rfd1 {[%clk 0:02:36]}  b5 {[%clk 0:02:07]} 16. Nxc6 {[%clk 0:02:25]}  Rxc6 {[%clk 0:02:08]} 17. a4 {[%clk 0:02:25]}  b4 {[%clk 0:02:06]} 18. Ne2 {[%clk 0:02:25]}  Rfc8 {[%clk 0:01:52]} 19. Nd4 {[%clk 0:02:22]}  Rc4 {[%clk 0:01:50]} 20. g3 {[%clk 0:02:10]}  Bf8 {[%clk 0:01:33]} 21. b3 {[%clk 0:01:50]}  Rc3 {[%clk 0:01:29]} 22. Kg2 {[%clk 0:01:06]}  Bh6 {[%clk 0:01:18]} 23. Rd3 {[%clk 0:01:05]}  R3c5 {[%clk 0:01:09]} 24. f4 {[%clk 0:00:58]}  Bg7 {[%clk 0:01:03]} 25. R1d2 {[%clk 0:00:48]}  f5 {[%clk 0:00:47]} 26. exf5 {[%clk 0:00:45]}  Bxd4 {[%clk 0:00:47]} 27. Rxd4 {[%clk 0:00:45]}  Rxc2 {[%clk 0:00:41]} 28. fxe6 {[%clk 0:00:44]}  fxe6 {[%clk 0:00:34]} 29. Rxd6 {[%clk 0:00:43]}  Rxd2+ {[%clk 0:00:34]} 30. Rxd2 {[%clk 0:00:44]}  Rc3 {[%clk 0:00:22]} 31. Rd6 {[%clk 0:00:32]}  Rxb3 {[%clk 0:00:22]} 32. Rxe6 {[%clk 0:00:31]}  Rb2+ {[%clk 0:00:17]} 33. Kh3 {[%clk 0:00:30]}  a5 {[%clk 0:00:11]} 34. Ra6 {[%clk 0:00:30]}  Ra2 {[%clk 0:00:10]} 35. Rxa5 {[%clk 0:00:30]}  b3 {[%clk 0:00:11]} 36. Rb5 {[%clk 0:00:30]}  b2 {[%clk 0:00:11]} 37. a5 {[%clk 0:00:30]}  Kf7 {[%clk 0:00:09]} 38. a6 {[%clk 0:00:29]}  Kg6 {[%clk 0:00:06]} 39. a7 {[%clk 0:00:26]}  Rxa7 {[%clk 0:00:05]} 40. Rxb2 {[%clk 0:00:26]}  Ra6 {[%clk 0:00:06]} 41. Rb5 {[%clk 0:00:26]}  Rc6 {[%clk 0:00:06]} 42. Rg5+ {[%clk 0:00:24]}  Kh6 {[%clk 0:00:05]} 43. Kg4 {[%clk 0:00:23]}  Rd6 {[%clk 0:00:05]} 44. h4 {[%clk 0:00:21]}  Rb6 {[%clk 0:00:05]} 45. Re5 {[%clk 0:00:21]}  Rc6 {[%clk 0:00:05]} 46. Re4 {[%clk 0:00:20]}  Rd6 {[%clk 0:00:05]} 47. f5 {[%clk 0:00:20]}  Rb6 {[%clk 0:00:05]} 48. Re6+ {[%clk 0:00:21]}  Rxe6 {[%clk 0:00:04]} 49. fxe6 {[%clk 0:00:22]}  Kg7 {[%clk 0:00:05]} 50. Kf5 {[%clk 0:00:21]}  Kf8 {[%clk 0:00:05]} 51. Kf6 {[%clk 0:00:22]}  Ke8 {[%clk 0:00:04]} 52. Kg7 {[%clk 0:00:19]}  h5 {[%clk 0:00:05]} 53. Kg6 {[%clk 0:00:19]}  Ke7 {[%clk 0:00:06]} 54. Kxh5 {[%clk 0:00:20]}  Kxe6 {[%clk 0:00:07]} 55. Kg6 {[%clk 0:00:20]}  Ke7 {[%clk 0:00:07]} 56. h5 {[%clk 0:00:21]}  Kf8 {[%clk 0:00:07]} 57. Kh7 {[%clk 0:00:21]}  Kf7 {[%clk 0:00:08]} 58. g4 {[%clk 0:00:21]}  Kf6 {[%clk 0:00:08]} 59. h6 {[%clk 0:00:21]}  Kg5 {[%clk 0:00:07]} 60. Kg7 {[%clk 0:00:21]}  Kxg4 {[%clk 0:00:07]} 61. h7 {[%clk 0:00:22]} 1-0


[Site "https://www.chess.com"]

[Event "Titled Tuesday Blitz December 27 Late 2022"]
[White "Toniutti, Ezio"]
[Black "Sadilek, Peter"]
[WhiteFideId "113034"]
[BlackFideId "1616439"]
[WhiteElo "2224"]
[BlackElo "2314"]
[Result "1-0"]
[Round "06"]
[TimeControl "180+2"]
[Date "2022.12.27"]
[WhiteClock "0:00:35"]
[BlackClock "0:00:20"]

1. d4 {[%clk 0:03:00]}  Nf6 {[%clk 0:02:55]} 2. c4 {[%clk 0:03:00]}  e6 {[%clk 0:02:56]} 3. g3 {[%clk 0:03:00]}  d5 {[%clk 0:02:55]} 4. Bg2 {[%clk 0:03:01]}  Be7 {[%clk 0:02:55]} 5. Nf3 {[%clk 0:03:01]}  O-O {[%clk 0:02:56]} 6. O-O {[%clk 0:03:02]}  Nbd7 {[%clk 0:02:57]} 7. Nbd2 {[%clk 0:03:01]}  c6 {[%clk 0:02:56]} 8. Qc2 {[%clk 0:03:01]}  b6 {[%clk 0:02:55]} 9. e4 {[%clk 0:03:01]}  Ba6 {[%clk 0:02:49]} 10. b3 {[%clk 0:02:58]}  c5 {[%clk 0:02:40]} 11. Rd1 {[%clk 0:02:35]}  dxc4 {[%clk 0:02:34]} 12. Nxc4 {[%clk 0:02:33]}  cxd4 {[%clk 0:02:14]} 13. Nxd4 {[%clk 0:02:31]}  Rc8 {[%clk 0:02:13]} 14. a4 {[%clk 0:02:21]}  Bxc4 {[%clk 0:02:07]} 15. bxc4 {[%clk 0:02:19]}  Qc7 {[%clk 0:02:08]} 16. Bf4 {[%clk 0:02:03]}  e5 {[%clk 0:02:08]} 17. Nf5 {[%clk 0:01:56]}  Bc5 {[%clk 0:02:08]} 18. Be3 {[%clk 0:01:53]}  g6 {[%clk 0:01:55]} 19. Bxc5 {[%clk 0:01:41]}  Nxc5 {[%clk 0:01:56]} 20. Ne3 {[%clk 0:01:36]}  Ne6 {[%clk 0:01:54]} 21. Bh3 {[%clk 0:01:30]}  Nd4 {[%clk 0:01:49]} 22. Qd3 {[%clk 0:01:29]}  Rcd8 {[%clk 0:01:47]} 23. Nd5 {[%clk 0:01:27]}  Qd6 {[%clk 0:01:47]} 24. f4 {[%clk 0:01:25]}  Nc6 {[%clk 0:01:41]} 25. Rac1 {[%clk 0:01:23]}  Nb4 {[%clk 0:01:20]} 26. Qe2 {[%clk 0:01:11]}  Nbxd5 {[%clk 0:01:10]} 27. cxd5 {[%clk 0:01:11]}  exf4 {[%clk 0:01:03]} 28. e5 {[%clk 0:01:11]}  Rde8 {[%clk 0:00:50]} 29. exd6 {[%clk 0:01:03]}  Rxe2 {[%clk 0:00:50]} 30. d7 {[%clk 0:01:03]}  fxg3 {[%clk 0:00:43]} 31. hxg3 {[%clk 0:01:03]}  Re3 {[%clk 0:00:30]} 32. Kf2 {[%clk 0:00:41]}  Ra3 {[%clk 0:00:23]} 33. Rc8 {[%clk 0:00:40]}  Nxd7 {[%clk 0:00:23]} 34. Bxd7 {[%clk 0:00:36]}  Rxc8 {[%clk 0:00:23]} 35. Bxc8 {[%clk 0:00:35]}  Rxa4 {[%clk 0:00:20]} 36. d6 {[%clk 0:00:35]} 1-0


[Site "https://www.chess.com"]

[Event "Titled Tuesday Blitz December 27 Late 2022"]
[White "Urbina Perez, Juan Antonio"]
[Black "Freile Martin, Javier"]
[WhiteFideId "2217368"]
[BlackFideId "3600165"]
[WhiteElo "2266"]
[BlackElo "2329"]
[Result "1-0"]
[Round "06"]
[TimeControl "180+2"]
[Date "2022.12.27"]
[WhiteClock "0:00:42"]
[BlackClock "0:00:04"]

1. d4 {[%clk 0:03:00]}  Nf6 {[%clk 0:02:58]} 2. c4 {[%clk 0:03:00]}  g6 {[%clk 0:02:57]} 3. f3 {[%clk 0:02:57]}  Bg7 {[%clk 0:02:56]} 4. e4 {[%clk 0:02:57]}  d6 {[%clk 0:02:56]} 5. Ne2 {[%clk 0:02:56]}  O-O {[%clk 0:02:55]} 6. Nec3 {[%clk 0:02:56]}  a6 {[%clk 0:02:54]} 7. Be3 {[%clk 0:02:54]}  c6 {[%clk 0:02:54]} 8. Qd2 {[%clk 0:02:53]}  Re8 {[%clk 0:02:51]} 9. h4 {[%clk 0:02:52]}  b5 {[%clk 0:02:48]} 10. d5 {[%clk 0:02:45]}  bxc4 {[%clk 0:02:42]} 11. Bxc4 {[%clk 0:02:44]}  Bb7 {[%clk 0:02:37]} 12. dxc6 {[%clk 0:02:36]}  Nxc6 {[%clk 0:02:36]} 13. O-O {[%clk 0:02:36]}  Rc8 {[%clk 0:02:31]} 14. Nd5 {[%clk 0:02:34]}  Ne5 {[%clk 0:02:25]} 15. Bb3 {[%clk 0:02:31]}  Nc4 {[%clk 0:02:14]} 16. Bxc4 {[%clk 0:02:29]}  Rxc4 {[%clk 0:02:14]} 17. Nbc3 {[%clk 0:02:28]}  e6 {[%clk 0:02:09]} 18. Nxf6+ {[%clk 0:02:23]}  Bxf6 {[%clk 0:02:09]} 19. Rfd1 {[%clk 0:02:23]}  d5 {[%clk 0:01:59]} 20. exd5 {[%clk 0:02:15]}  exd5 {[%clk 0:01:59]} 21. Bg5 {[%clk 0:02:14]}  d4 {[%clk 0:01:49]} 22. Ne2 {[%clk 0:02:07]}  d3 {[%clk 0:01:33]} 23. Bxf6 {[%clk 0:01:48]}  Qxf6 {[%clk 0:00:42]} 24. Qxd3 {[%clk 0:01:47]}  Qb6+ {[%clk 0:00:37]} 25. Nd4 {[%clk 0:01:26]}  Qc5 {[%clk 0:00:23]} 26. b3 {[%clk 0:01:09]}  Rc3 {[%clk 0:00:22]} 27. Qd2 {[%clk 0:01:07]}  Rd8 {[%clk 0:00:20]} 28. Kh1 {[%clk 0:01:04]}  Rxf3 {[%clk 0:00:15]} 29. gxf3 {[%clk 0:01:00]}  Bxf3+ {[%clk 0:00:15]} 30. Kg1 {[%clk 0:00:58]}  Bxd1 {[%clk 0:00:05]} 31. Rxd1 {[%clk 0:00:59]}  Rd5 {[%clk 0:00:04]} 32. Qe3 {[%clk 0:00:57]}  Qd6 {[%clk 0:00:02]} 33. Rd2 {[%clk 0:00:46]}  a5 {[%clk 0:00:03]} 34. Nf3 {[%clk 0:00:43]}  h5 {[%clk 0:00:03]} 35. Rxd5 {[%clk 0:00:42]}  Qxd5 {[%clk 0:00:04]} 36. Qe8+ {[%clk 0:00:42]}  Kg7 {[%clk 0:00:03]} 37. Qe5+ {[%clk 0:00:42]}  Qxe5 {[%clk 0:00:03]} 38. Nxe5 {[%clk 0:00:43]}  f6 {[%clk 0:00:03]} 39. Nc6 {[%clk 0:00:43]}  g5 {[%clk 0:00:04]} 40. Nxa5 {[%clk 0:00:42]} 1-0


[Site "https://www.chess.com"]

[Event "Titled Tuesday Blitz December 27 Late 2022"]
[White "Vargas, Mauricio"]
[Black "Prohorov, Olexandr"]
[WhiteFideId "4404572"]
[BlackFideId "14105578"]
[WhiteElo "2035"]
[BlackElo "2086"]
[Result "0-1"]
[Round "06"]
[TimeControl "180+2"]
[Date "2022.12.27"]
[WhiteClock "0:00:01"]
[BlackClock "0:00:02"]

1. e4 {[%clk 0:03:00]}  d6 {[%clk 0:01:06]} 2. f4 {[%clk 0:02:52]}  c5 {[%clk 0:01:02]} 3. Nc3 {[%clk 0:02:52]}  Nc6 {[%clk 0:01:02]} 4. Nf3 {[%clk 0:02:53]}  a6 {[%clk 0:01:02]} 5. d3 {[%clk 0:02:52]}  b5 {[%clk 0:01:02]} 6. h3 {[%clk 0:02:51]}  Bb7 {[%clk 0:01:03]} 7. g4 {[%clk 0:02:51]}  e6 {[%clk 0:01:03]} 8. Bg2 {[%clk 0:02:51]}  h5 {[%clk 0:01:03]} 9. g5 {[%clk 0:02:51]}  g6 {[%clk 0:01:03]} 10. O-O {[%clk 0:02:51]}  Bg7 {[%clk 0:01:03]} 11. Qe1 {[%clk 0:02:49]}  Nge7 {[%clk 0:01:03]} 12. Ne2 {[%clk 0:02:48]}  d5 {[%clk 0:01:01]} 13. c3 {[%clk 0:02:40]}  b4 {[%clk 0:00:58]} 14. Bd2 {[%clk 0:02:38]}  O-O {[%clk 0:00:54]} 15. Qh4 {[%clk 0:02:28]}  dxe4 {[%clk 0:00:51]} 16. dxe4 {[%clk 0:02:27]}  Na5 {[%clk 0:00:38]} 17. cxb4 {[%clk 0:02:21]}  Nc4 {[%clk 0:00:35]} 18. Bc3 {[%clk 0:02:11]}  Qd3 {[%clk 0:00:28]} 19. Ng3 {[%clk 0:02:03]}  Bxc3 {[%clk 0:00:26]} 20. bxc3 {[%clk 0:02:00]}  Qe3+ {[%clk 0:00:25]} 21. Kh2 {[%clk 0:01:57]}  Qxc3 {[%clk 0:00:26]} 22. bxc5 {[%clk 0:01:57]}  Ne3 {[%clk 0:00:26]} 23. Rfc1 {[%clk 0:01:42]}  Nxg2 {[%clk 0:00:25]} 24. Kxg2 {[%clk 0:01:39]}  Qb2+ {[%clk 0:00:24]} 25. Kf1 {[%clk 0:01:29]}  Nf5 {[%clk 0:00:20]} 26. Nxf5 {[%clk 0:01:15]}  exf5 {[%clk 0:00:20]} 27. Rab1 {[%clk 0:00:59]}  Qxa2 {[%clk 0:00:09]} 28. Rxb7 {[%clk 0:00:53]}  fxe4 {[%clk 0:00:09]} 29. Ne5 {[%clk 0:00:51]}  e3 {[%clk 0:00:09]} 30. Qe1 {[%clk 0:00:48]}  Qd5 {[%clk 0:00:09]} 31. c6 {[%clk 0:00:45]}  Qh1+ {[%clk 0:00:08]} 32. Ke2 {[%clk 0:00:45]}  Qg2+ {[%clk 0:00:08]} 33. Kxe3 {[%clk 0:00:42]}  Qxh3+ {[%clk 0:00:08]} 34. Ke4 {[%clk 0:00:40]}  Qg2+ {[%clk 0:00:07]} 35. Ke3 {[%clk 0:00:35]}  Rad8 {[%clk 0:00:07]} 36. Rd1 {[%clk 0:00:21]}  Rde8 {[%clk 0:00:04]} 37. Qf2 {[%clk 0:00:17]}  Qh3+ {[%clk 0:00:04]} 38. Qf3 {[%clk 0:00:16]}  Qf5 {[%clk 0:00:02]} 39. Kf2 {[%clk 0:00:10]}  Qc2+ {[%clk 0:00:03]} 40. Kg3 {[%clk 0:00:10]}  Rd8 {[%clk 0:00:02]} 41. Rxd8 {[%clk 0:00:04]}  Rxd8 {[%clk 0:00:03]} 42. Nd7 {[%clk 0:00:03]}  Rc8 {[%clk 0:00:03]} 43. Ne5 {[%clk 0:00:01]}  Kg7 {[%clk 0:00:04]} 44. Rxf7+ {[%clk 0:00:02]}  Kg8 {[%clk 0:00:04]} 45. Qa3 {[%clk 0:00:01]}  Qf5 {[%clk 0:00:03]} 46. Qe7 {[%clk 0:00:01]}  Rf8 {[%clk 0:00:02]} 0-1


[Site "https://www.chess.com"]